bitfinex/quotes_BTCUSD_20250714
["timestamp","ask_amount","ask_price","bid_price","bid_amount"]
[1752531538204,0.32771088,120170.0,120160.0,0.24921985]
[1752531538827,0.31131088,120170.0,120160.0,0.25224985]
[1752531539036,0.29601088,120170.0,120160.0,0.67828667]
[1752531539453,0.29597088,120170.0,120160.0,0.67828667]
[1752531540957,0.16743088,120170.0,120160.0,0.68660869]
[1752531541178,0.16743088,120170.0,120160.0,0.69493064]
[1752531541179,0.31895467,120170.0,120160.0,0.69493064]
[1752531541405,0.31895467,120170.0,120160.0,0.71073064]
[1752531542048,0.31063375,120170.0,120160.0,0.69408667]
[1752531542255,0.31063375,120170.0,120160.0,0.68660883]
[1752531542677,0.31063375,120170.0,120160.0,0.69493092]
[1752531543412,0.31063375,120170.0,120160.0,0.70325294]
[1752531543626,0.31063375,120170.0,120160.0,0.71157489]
[1752531544006,0.31063375,120170.0,120160.0,0.72737489]
[1752531544949,0.31063375,120170.0,120160.0,0.71905294]
[1752531546096,0.31063375,120170.0,120160.0,0.71073092]
[1752531546302,0.31063375,120170.0,120160.0,0.69493092]
[1752531546790,0.18308865,120160.0,120150.0,0.17820325]
[1752531546993,0.19141088,120160.0,120150.0,0.44611847]
[1752531547512,0.31797088,120160.0,120150.0,0.44611847]
[1752531548213,0.31797088,120160.0,120150.0,0.43779589]
[1752531548520,0.31797088,120160.0,120150.0,0.44611847]
[1752531549010,0.31797088,120160.0,120150.0,0.52926702]
[1752531550481,0.31797088,120160.0,120150.0,0.53758953]
[1752531550727,0.02496614,120160.0,120150.0,0.54591197]
[1752531550934,0.15152614,120160.0,120150.0,0.54591197]
[1752531551142,0.15152614,120160.0,120150.0,0.56201197]
[1752531552765,0.151526,120160.0,120150.0,0.56201197]
[1752531553170,0.13488168,120160.0,120150.0,0.57831197]
[1752531553372,0.15152538,120160.0,120150.0,0.57831197]
[1752531553920,0.15984747,120160.0,120150.0,0.57831197]
[1752531554123,0.15152538,120160.0,120150.0,0.57831197]
[1752531554551,0.15984747,120160.0,120150.0,0.57831197]
[1752531555701,0.15152538,120160.0,120150.0,0.57831197]
[1752531556011,0.15984747,120160.0,120150.0,0.57831197]
[1752531556626,0.15984747,120160.0,120150.0,0.56201197]
[1752531556937,0.33461492,120160.0,120150.0,0.54591197]
[1752531557376,0.15984795,120160.0,120150.0,0.54591197]
[1752531560864,0.32629269,120160.0,120150.0,0.52926702]
[1752531561008,0.15984795,120160.0,120150.0,0.54591197]
[1752531561394,0.15152579,120160.0,120150.0,0.54591197]
[1752531562166,0.15152579,120160.0,120150.0,0.56111197]
[1752531562785,0.13488175,120160.0,120150.0,0.57691197]
[1752531562993,0.14320364,120160.0,120150.0,0.57691197]
[1752531564709,0.19964,120200.0,120190.0,0.19136283]
[1752531564910,0.0166383,120200.0,120190.0,0.50914147]
[1752531565121,0.15151721,120200.0,120190.0,0.58145629]
[1752531565332,0.22522704,120200.0,120190.0,0.00316]
[1752531565550,0.34346799,120200.0,120190.0,0.17472328]
[1752531565830,0.34346799,120200.0,120190.0,0.19136325]
[1752531566047,0.17707864,120200.0,120190.0,0.19968313]
[1752531566254,0.1612783,120200.0,120190.0,0.54552134]
[1752531566468,0.15349762,120200.0,120190.0,0.54552092]
[1752531566880,0.15151762,120200.0,120190.0,0.54552099]
[1752531567955,0.14319782,120200.0,120190.0,0.54552064]
[1752531568161,0.15151687,120200.0,120190.0,0.54552064]
[1752531568605,0.02495687,120200.0,120190.0,0.54552064]
[1752531568825,0.15147687,120200.0,120190.0,0.54552064]
[1752531569026,0.02495687,120200.0,120190.0,0.54552064]
[1752531569218,0.15147687,120200.0,120190.0,0.54552064]
[1752531569424,0.02495687,120200.0,120190.0,0.54552064]
[1752531569577,0.03327599,120200.0,120190.0,0.56062064]
[1752531569795,0.16811518,120200.0,120190.0,0.56062064]
[1752531570404,0.15979599,120200.0,120190.0,0.22825224]
[1752531570583,0.15979599,120200.0,120190.0,0.56062064]
[1752531570785,0.15147687,120200.0,120190.0,0.56062064]
[1752531571819,0.16811531,120200.0,120190.0,0.52056142]
[1752531571985,0.15979647,120200.0,120190.0,0.52056142]
[1752531572207,0.16811593,120200.0,120190.0,0.52888123]
[1752531572414,0.16811593,120200.0,120190.0,0.52056142]
[1752531572624,0.15979647,120200.0,120190.0,0.52888123]
[1752531572824,0.15979647,120200.0,120190.0,0.53720097]
[1752531573133,0.15979647,120200.0,120190.0,0.54552064]
[1752531573312,0.15979647,120200.0,120190.0,0.53720097]
[1752531573543,0.15979647,120200.0,120190.0,0.54552064]
[1752531574831,0.1597964,120200.0,120190.0,0.54552064]
[1752531575237,0.15147715,120200.0,120190.0,0.54552064]
[1752531575443,0.1597964,120200.0,120190.0,0.53720097]
[1752531575644,0.16811572,120200.0,120190.0,0.54552064]
[1752531576182,0.15147715,120200.0,120190.0,0.54552064]
[1752531576647,0.1597964,120200.0,120190.0,0.62076997]
[1752531576827,0.1597964,120200.0,120190.0,0.54552064]
[1752531576971,0.16811579,120200.0,120190.0,0.52888123]
[1752531577169,0.16811627,120200.0,120190.0,0.52888123]
[1752531577635,0.15147742,120200.0,120190.0,0.53720097]
[1752531578043,0.15147742,120200.0,120190.0,0.54552064]
[1752531578245,0.15979674,120200.0,120190.0,0.54552064]
[1752531578466,0.15979674,120200.0,120190.0,0.53720097]
[1752531578676,0.15979674,120200.0,120190.0,0.54552064]
[1752531578883,0.15147742,120200.0,120190.0,0.54552064]
[1752531579244,0.15979674,120200.0,120190.0,0.54552064]
[1752531579486,0.16811613,120200.0,120190.0,0.53720097]
[1752531580156,0.32618643,120200.0,120190.0,0.52056142]
[1752531580566,0.32618643,120200.0,120190.0,0.51224154]
[1752531580775,0.30954806,120200.0,120190.0,0.52056183]
[1752531581021,0.32792806,120200.0,120190.0,0.52056183]
[1752531581230,0.32792806,120200.0,120190.0,0.52888185]
[1752531581411,0.32792806,120200.0,120190.0,0.52056183]
[1752531581615,0.32792806,120200.0,120190.0,0.52888185]
[1752531582450,0.32792806,120200.0,120180.0,0.02862797]
[1752531582451,0.18304308,120190.0,120180.0,0.02862797]
[1752531582658,0.53977174,120190.0,120180.0,0.02555301]
[1752531582866,0.33392334,120190.0,120180.0,0.02555301]
[1752531583773,0.33392334,120190.0,120180.0,0.02655301]
[1752531586526,0.74920885,120190.0,120180.0,0.00108504]
[1752531586727,0.70400619,120190.0,120180.0,0.00108504]
[1752531587125,0.93048619,120190.0,120180.0,0.00108504]
[1752531587704,0.80396619,120190.0,120180.0,0.00108504]
[1752531587906,0.93048619,120190.0,120180.0,0.00108504]
[1752531589105,0.93048619,120190.0,120180.0,8.504e-05]
[1752531589655,0.84916885,120190.0,120180.0,8.504e-05]
[1752531589892,0.85116885,120190.0,120180.0,8.504e-05]
[1752531600529,0.72464885,120190.0,120180.0,8.504e-05]
[1752531600784,1.39076885,120190.0,120180.0,8.504e-05]
[1752531601020,1.59076884,120190.0,120180.0,8.504e-05]
[1752531601230,0.19028138,120150.0,120140.0,0.002]
[1752531601456,0.41655591,120150.0,120140.0,0.002]
[1752531601675,0.40035591,120150.0,120140.0,0.002]
[1752531602362,0.38485591,120150.0,120140.0,0.002]
[1752531602588,0.38277591,120150.0,120140.0,0.00819]
[1752531602827,0.38277591,120150.0,120140.0,0.61417997]
[1752531602828,0.1749088,120150.0,120140.0,0.61417997]
[1752531603045,0.18322714,120150.0,120140.0,0.3723584]
[1752531603271,0.17490435,120150.0,120140.0,0.3723584]
[1752531603490,0.30142435,120150.0,120140.0,0.3723584]
[1752531604671,0.30142435,120150.0,120140.0,0.53883084]
[1752531604877,0.18323165,120150.0,120140.0,0.55547759]
[1752531605082,0.15993795,120150.0,120140.0,0.56380079]
[1752531605299,0.02509509,120150.0,120140.0,0.57212392]
[1752531605513,0.00012742,120150.0,120140.0,0.57212392]
[1752531605732,0.12664742,120150.0,120140.0,0.58666477]
[1752531605940,0.00012742,120150.0,120140.0,0.58666477]
[1752531606154,0.12664742,120150.0,120140.0,0.58666477]
[1752531607541,0.13496979,120150.0,120140.0,0.58666477]
[1752531608012,0.12664742,120150.0,120140.0,0.58666477]
[1752531608274,0.13496979,120150.0,120140.0,0.58666477]
[1752531608506,0.12664742,120150.0,120140.0,0.58666477]
[1752531612358,0.00012742,120150.0,120140.0,0.58666477]
[1752531612591,0.00012742,120150.0,120140.0,0.92666477]
[1752531612836,0.12664742,120150.0,120140.0,0.92666477]
[1752531618701,0.00012742,120150.0,120140.0,1.00801188]
[1752531620135,0.00844972,120150.0,120140.0,0.92666477]
[1752531620338,0.13496972,120150.0,120140.0,0.92866477]
[1752531620541,0.13496979,120150.0,120140.0,0.92866477]
[1752531620747,0.0167723,120150.0,120140.0,0.92866477]
[1752531620948,0.1432923,120150.0,120140.0,0.92866477]
[1752531621360,0.01677223,120150.0,120140.0,0.92866477]
[1752531621585,0.15993746,120150.0,120140.0,0.88719517]
[1752531621801,0.19353438,120150.0,120140.0,0.18398606]
[1752531622016,0.20131166,120150.0,120140.0,0.19230954]
[1752531622226,0.32783166,120150.0,120140.0,0.19230954]
[1752531622430,0.17688887,120150.0,120140.0,0.20895615]
[1752531622605,0.30340887,120150.0,120140.0,0.19230947]
[1752531623021,0.30340887,120150.0,120140.0,0.20063281]
[1752531624138,0.30340887,120150.0,120140.0,0.19230961]
[1752531624801,0.30340887,120150.0,120140.0,0.18398606]
[1752531626078,0.29508601,120150.0,120140.0,0.00919]
[1752531626722,0.31058601,120150.0,120140.0,0.004]
[1752531626958,0.57923751,120150.0,120140.0,0.004]
[1752531627156,0.78867462,120150.0,120140.0,0.004]
[1752531627380,0.45630622,120150.0,120140.0,0.004]
[1752531627802,0.78867462,120150.0,120140.0,0.004]
[1752531628016,0.66215462,120150.0,120140.0,0.004]
[1752531628234,0.78867462,120150.0,120140.0,0.004]
[1752531628656,0.45630622,120150.0,120140.0,0.004]
[1752531628862,0.45630622,120150.0,120140.0,0.002]
[1752531629242,0.45630622,120150.0,120140.0,0.003]
[1752531630963,0.78867462,120150.0,120140.0,0.003]
[1752531631302,0.45630622,120150.0,120140.0,0.003]
[1752531631631,0.32978622,120150.0,120140.0,0.003]
[1752531631833,0.45630622,120150.0,120140.0,0.003]
[1752531633347,0.78867462,120150.0,120140.0,0.003]
[1752531634299,0.66215462,120150.0,120140.0,0.003]
[1752531634479,0.78867462,120150.0,120140.0,0.003]
[1752531637913,0.66215462,120150.0,120140.0,0.003]
[1752531638118,0.78867462,120150.0,120140.0,0.003]
[1752531638542,0.66215462,120150.0,120140.0,0.003]
[1752531638747,0.78867462,120150.0,120140.0,0.003]
[1752531639165,0.66215462,120150.0,120140.0,0.003]
[1752531639376,0.78867462,120150.0,120140.0,0.003]
[1752531641902,0.40860312,120150.0,120140.0,0.003]
[1752531642110,0.40703312,120150.0,120140.0,0.003]
[1752531642307,0.39193312,120150.0,120140.0,0.003]
[1752531642854,0.40843312,120150.0,120140.0,0.003]
[1752531643051,0.28191312,120150.0,120140.0,0.003]
[1752531643283,0.40843312,120150.0,120140.0,0.003]
[1752531643924,0.48975046,120150.0,120140.0,0.003]
[1752531651019,0.39193312,120150.0,120140.0,0.003]
[1752531652761,0.74183152,120150.0,120140.0,0.003]
[1752531655454,0.74026152,120150.0,120140.0,0.003]
[1752531656228,0.40789312,120150.0,120140.0,0.003]
[1752531658329,0.74183152,120150.0,120140.0,0.003]
[1752531658525,1.03666886,120150.0,120140.0,0.003]
[1752531658725,1.26310886,120150.0,120140.0,0.003]
[1752531659560,1.13662886,120150.0,120140.0,0.002]
[1752531659768,1.26310886,120150.0,120140.0,0.002]
[1752531659939,1.41310886,120150.0,120140.0,0.002]
[1752531660152,1.26310886,120150.0,120140.0,0.002]
[1752531660371,1.26510886,120150.0,120140.0,0.002]
[1752531660576,1.13862886,120150.0,120140.0,0.002]
[1752531661200,1.26510886,120150.0,120140.0,0.002]
[1752531661606,1.13862886,120150.0,120140.0,0.002]
[1752531661813,1.26510886,120150.0,120140.0,0.002]
[1752531662420,1.13862886,120150.0,120140.0,0.002]
[1752531662669,1.26510886,120150.0,120140.0,0.002]
[1752531666548,1.46478886,120150.0,120140.0,0.002]
[1752531669260,1.33830886,120150.0,120140.0,0.002]
[1752531669492,1.46478886,120150.0,120140.0,0.002]
[1752531670318,1.33830886,120150.0,120140.0,0.002]
[1752531670536,1.46478886,120150.0,120140.0,0.002]
[1752531672702,1.33830886,120150.0,120140.0,0.002]
[1752531672932,0.18313443,120130.0,120120.0,0.002]
[1752531673154,0.77542338,120130.0,120120.0,0.002]
[1752531673364,0.77699338,120130.0,120120.0,0.002]
[1752531675026,0.65051338,120130.0,120120.0,0.002]
[1752531675265,0.26448154,120130.0,120120.0,0.02348]
[1752531675501,0.26448154,120130.0,120120.0,0.3730484]
[1752531675749,0.39096154,120130.0,120120.0,0.04068]
[1752531676437,0.26448154,120130.0,120120.0,0.04068]
[1752531676662,0.39096154,120130.0,120120.0,0.04068]
[1752531676893,0.44670619,120130.0,120120.0,0.04068]
[1752531678052,0.39096154,120130.0,120120.0,0.04068]
[1752531678284,0.01664813,120130.0,120120.0,0.55619808]
[1752531678532,0.30961443,120130.0,120120.0,0.54787342]
[1752531678751,0.30961443,120130.0,120120.0,0.54787349]
[1752531678974,0.30961443,120130.0,120120.0,0.56452315]
[1752531679186,0.30961443,120130.0,120120.0,0.55619835]
[1752531681053,0.15145189,120130.0,120120.0,0.58117226]
[1752531681890,0.32626243,120130.0,120120.0,0.58117226]
[1752531683735,0.32626243,120130.0,120120.0,0.57284788]
[1752531683959,0.31793867,120130.0,120120.0,0.57284788]
[1752531684367,0.31793867,120130.0,120120.0,0.55619835]
[1752531684797,0.00012742,120150.0,120140.0,0.20619592]
[1752531685012,0.03341739,120150.0,120140.0,0.54067432]
[1752531685220,0.31799403,120150.0,120140.0,0.54389432]
[1752531685434,0.31799403,120150.0,120140.0,0.55221773]
[1752531685842,0.30967152,120150.0,120140.0,0.55221773]
[1752531686257,0.30967152,120150.0,120140.0,0.560541]
[1752531687157,0.30967152,120150.0,120140.0,0.55321773]
[1752531689306,0.25625591,120150.0,120140.0,0.03773]
[1752531689526,0.73214431,120150.0,120140.0,0.001]
[1752531689734,0.25823591,120150.0,120140.0,0.00422]
[1752531689947,0.38467591,120150.0,120140.0,0.00422]
[1752531690839,0.25625591,120150.0,120140.0,0.3703484]
[1752531691046,0.38269591,120150.0,120140.0,0.3703484]
[1752531691260,0.38269591,120150.0,120140.0,0.03798]
[1752531692308,0.25625591,120150.0,120140.0,0.03798]
[1752531692510,0.38269591,120150.0,120140.0,0.03798]
[1752531697494,0.1749088,120150.0,120140.0,0.03798]
[1752531697684,0.3013488,120150.0,120140.0,0.03798]
[1752531698128,0.1749088,120150.0,120140.0,0.03798]
[1752531698344,0.3013488,120150.0,120140.0,0.03798]
[1752531699102,0.34812817,120150.0,120140.0,0.03798]
[1752531699307,0.34812817,120150.0,120140.0,0.00628]
[1752531699520,0.35010817,120150.0,120140.0,0.00628]
[1752531700485,0.22366817,120150.0,120140.0,0.00628]
[1752531700700,0.34812817,120150.0,120140.0,0.02138]
[1752531700905,0.3013488,120150.0,120140.0,0.02138]
[1752531702914,0.1749088,120150.0,120140.0,0.02138]
[1752531703128,0.3013488,120150.0,120140.0,0.02138]
[1752531706953,0.3013488,120150.0,120140.0,0.00628]
[1752531707080,0.3588503,120150.0,120140.0,0.00628]
[1752531707498,0.3588503,120150.0,120140.0,0.02138]
[1752531708119,0.3608303,120150.0,120140.0,0.001]
[1752531708322,0.79020581,120150.0,120140.0,0.001]
[1752531709798,0.66380581,120150.0,120140.0,0.001]
[1752531710000,0.71700431,120150.0,120140.0,0.00422]
[1752531710216,0.38463591,120150.0,120140.0,0.00422]
[1752531712839,0.25823591,120150.0,120140.0,0.00628]
[1752531713053,0.38265591,120150.0,120140.0,0.03818]
[1752531713509,0.38265591,120150.0,120140.0,0.02188]
[1752531714848,0.25625591,120150.0,120140.0,0.02188]
[1752531715060,0.38265591,120150.0,120140.0,0.53622084]
[1752531715262,0.3013088,120150.0,120140.0,0.53622084]
[1752531715464,0.3013088,120150.0,120140.0,0.54454432]
[1752531715874,0.3013088,120150.0,120140.0,0.53622084]
[1752531716291,0.30963138,120150.0,120140.0,0.54454439]
[1752531716501,0.18323138,120150.0,120140.0,0.56119128]
[1752531716738,0.30963138,120150.0,120140.0,0.56119128]
[1752531717132,0.30963138,120150.0,120140.0,0.56951462]
[1752531717133,0.18323138,120150.0,120140.0,0.56951462]
[1752531717346,0.30963138,120150.0,120140.0,0.56119128]
[1752531717558,0.30963138,120150.0,120140.0,0.56951462]
[1752531718034,0.3179543,120150.0,120140.0,0.57783782]
[1752531718264,0.32627716,120150.0,120140.0,0.56951462]
[1752531718492,0.31795458,120150.0,120140.0,0.56951462]
[1752531719426,0.31795458,120150.0,120140.0,0.57783789]
[1752531720264,0.31795458,120150.0,120140.0,0.56119121]
[1752531721624,0.31795458,120150.0,120140.0,0.55286787]
[1752531721921,0.30963179,120150.0,120140.0,0.55286787]
[1752531722487,0.00012742,120150.0,120140.0,0.56951434]
[1752531722703,0.00012742,120150.0,120140.0,1.55947039]
[1752531722933,0.00012742,120150.0,120140.0,1.10070199]
[1752531723149,0.12652742,120150.0,120140.0,1.07623728]
[1752531724243,0.13484972,120150.0,120140.0,1.07623728]
[1752531724476,0.12652742,120150.0,120140.0,1.07623728]
[1752531724724,0.00844979,120150.0,120140.0,0.92295519]
[1752531724948,0.19987661,120150.0,120140.0,0.54275244]
[1752531725154,0.32627716,120150.0,120140.0,0.55939926]
[1752531725354,0.31795458,120150.0,120140.0,0.55939933]
[1752531725587,0.31795458,120150.0,120140.0,0.90009107]
[1752531726316,0.31795458,120150.0,120140.0,0.90841434]
[1752531726546,0.19155458,120150.0,120140.0,0.90841434]
[1752531726792,0.31795458,120150.0,120140.0,0.87512084]
[1752531727037,0.30959179,120150.0,120140.0,0.89176794]
[1752531727252,0.30959179,120150.0,120140.0,0.87512084]
[1752531727496,0.30959179,120150.0,120140.0,0.88344432]
[1752531727705,0.30959179,120150.0,120140.0,0.89176773]
[1752531727889,0.30959179,120150.0,120140.0,0.55939933]
[1752531728219,0.30959179,120150.0,120140.0,0.89176773]
[1752531728798,0.30959179,120150.0,120140.0,0.88344432]
[1752531729005,0.30959179,120150.0,120140.0,0.89176773]
[1752531729205,0.30959179,120150.0,120140.0,0.90009107]
[1752531729780,0.30959179,120150.0,120140.0,0.90309107]
[1752531731069,0.30959179,120150.0,120140.0,0.91141434]
[1752531732182,0.30959179,120150.0,120140.0,0.90309107]
[1752531732407,0.30959179,120150.0,120140.0,0.91141434]
[1752531732870,0.14313251,120150.0,120140.0,0.91973747]
[1752531733128,0.14313244,120150.0,120140.0,0.91973747]
[1752531733352,0.15145523,120150.0,120140.0,0.91973747]
[1752531734404,0.15977809,120150.0,120140.0,0.91973747]
[1752531734605,0.32623668,120150.0,120140.0,0.91973747]
[1752531737002,0.15977809,120150.0,120140.0,0.91973747]
[1752531740101,0.15145523,120150.0,120140.0,0.91973747]
[1752531741871,0.12648742,120150.0,120140.0,0.91973747]
[1752531742112,0.00844979,120150.0,120140.0,0.93427832]
[1752531742325,0.0167723,120150.0,120140.0,0.93427832]
[1752531742535,0.13480979,120150.0,120140.0,0.93427832]
[1752531742965,0.14313223,120150.0,120140.0,0.93427832]
[1752531743421,0.15145474,120150.0,120140.0,0.93427832]
[1752531744046,0.13480979,120150.0,120140.0,0.93427832]
[1752531744415,0.1431323,120150.0,120140.0,0.93427832]
[1752531744822,0.13480979,120150.0,120140.0,0.93427832]
[1752531745023,0.14313223,120150.0,120140.0,0.93427832]
[1752531745980,0.15145481,120150.0,120140.0,0.93427832]
[1752531746196,0.14313223,120150.0,120140.0,0.93427832]
[1752531747469,0.15145481,120150.0,120140.0,0.93427832]
[1752531747671,0.14313223,120150.0,120140.0,0.93427832]
[1752531750505,0.01677223,120150.0,120140.0,0.93427832]
[1752531751042,0.00012742,120150.0,120140.0,1.01562543]
[1752531751272,0.12644742,120150.0,120140.0,1.01562543]
[1752531751708,0.11646225,120150.0,120140.0,1.01562543]
[1752531753304,0.11646225,120150.0,120140.0,1.02381327]
[1752531754178,0.01664509,120150.0,120140.0,0.88653115]
[1752531754398,0.14296509,120150.0,120140.0,0.91040816]
[1752531754609,0.13464244,120150.0,120140.0,0.91040816]
[1752531755050,0.14296502,120150.0,120140.0,0.91040816]
[1752531756832,0.15128767,120150.0,120140.0,0.91040816]
[1752531757047,0.15961039,120150.0,120140.0,0.57803976]
[1752531757262,0.15961039,120150.0,120140.0,0.91040816]
[1752531757501,0.15128767,120150.0,120140.0,0.91040816]
[1752531758186,0.15961046,120150.0,120140.0,0.91040816]
[1752531758671,0.15128767,120150.0,120140.0,0.91040816]
[1752531758954,0.14296502,120150.0,120140.0,0.91040816]
[1752531760317,0.13464244,120150.0,120140.0,0.91040816]
[1752531760571,0.14296502,120150.0,120140.0,0.91040816]
[1752531761722,0.11633497,120150.0,120140.0,0.91040816]
[1752531761946,0.13297985,120150.0,120140.0,0.91040816]
[1752531762850,0.13297978,120150.0,120140.0,0.91040816]
[1752531764070,0.14130236,120150.0,120140.0,0.91040816]
[1752531764485,0.13297978,120150.0,120140.0,0.91040816]
[1752531764692,0.13464237,120150.0,120140.0,0.91040816]
[1752531765150,0.1346423,120150.0,120140.0,0.91040816]
[1752531765590,0.12632,120150.0,120140.0,0.91040816]
[1752531765804,0.01664343,120160.0,120150.0,0.19974918]
[1752531766018,0.01669454,120160.0,120150.0,0.55247758]
[1752531766197,0.14301454,120160.0,120150.0,0.55247758]
[1752531766854,0.14301433,120160.0,120150.0,0.55247758]
[1752531767032,0.15133615,120160.0,120150.0,0.55347758]
[1752531767839,5.104e-05,120160.0,120150.0,0.92321843]
[1752531768260,0.12637104,120160.0,120150.0,0.92321843]
[1752531769774,5.104e-05,120160.0,120150.0,0.94814867]
[1752531769999,5.104e-05,120160.0,120150.0,0.92321843]
[1752531770276,0.12633104,120160.0,120150.0,0.92321843]
[1752531770528,0.00837265,120160.0,120150.0,0.92321843]
[1752531770754,0.12633104,120160.0,120150.0,0.92321843]
[1752531770946,0.13465272,120160.0,120150.0,0.92321843]
[1752531771736,0.12633104,120160.0,120150.0,0.92321843]
[1752531771950,0.13465265,120160.0,120150.0,0.92321843]
[1752531772822,0.12633104,120160.0,120150.0,0.92321843]
[1752531773038,0.13465265,120160.0,120150.0,0.92321843]
[1752531773259,0.01669433,120160.0,120150.0,0.57565003]
[1752531773471,0.14297433,120160.0,120150.0,0.56035003]
[1752531773682,0.01669433,120160.0,120150.0,0.89271843]
[1752531773916,0.13465265,120160.0,120150.0,0.89271843]
[1752531774358,0.1429744,120160.0,120150.0,0.89271843]
[1752531774760,0.13465265,120160.0,120150.0,0.89271843]
[1752531774966,0.13465265,120160.0,120150.0,0.90811843]
[1752531775202,0.1429744,120160.0,120150.0,0.90811843]
[1752531778248,0.13465265,120160.0,120150.0,0.90811843]
[1752531778457,5.104e-05,120160.0,120150.0,0.90811843]
[1752531778663,0.12633104,120160.0,120150.0,0.92331843]
[1752531784350,5.104e-05,120160.0,120150.0,0.59095003]
[1752531784572,0.12633104,120160.0,120150.0,0.90811843]
[1752531785083,0.13465279,120160.0,120150.0,0.89271843]
[1752531785295,0.12633104,120160.0,120150.0,0.89271843]
[1752531785953,0.13465272,120160.0,120150.0,0.89271843]
[1752531786160,0.12633104,120160.0,120150.0,0.89271843]
[1752531786374,0.13465279,120160.0,120150.0,0.89271843]
[1752531787872,0.13465265,120160.0,120150.0,0.89271843]
[1752531788092,0.12633104,120160.0,120150.0,0.89271843]
[1752531788329,0.12629104,120160.0,120150.0,0.89271843]
[1752531788544,0.12629104,120160.0,120150.0,0.92451843]
[1752531789207,0.11365104,120160.0,120150.0,0.92451843]
[1752531791455,0.01864204,120170.0,120160.0,0.1914106]
[1752531791677,0.14488204,120170.0,120160.0,0.525769]
[1752531791896,0.14488197,120170.0,120160.0,0.528959]
[1752531793555,0.15320309,120170.0,120160.0,0.528959]
[1752531793981,0.02696309,120170.0,120160.0,0.528959]
[1752531794202,0.15320309,120170.0,120160.0,0.528959]
[1752531795833,0.14488197,120170.0,120160.0,0.528959]
[1752531796191,0.12824,120170.0,120160.0,0.544659]
[1752531796452,0.002,120170.0,120160.0,0.544659]
[1752531796651,0.12824,120170.0,120160.0,0.560559]
[1752531797681,0.002,120170.0,120160.0,0.560559]
[1752531797896,0.12824,120170.0,120160.0,0.560559]
[1752531801180,0.13656105,120170.0,120160.0,0.544659]
[1752531801391,0.13656099,120170.0,120160.0,0.544659]
[1752531801820,0.12824,120170.0,120160.0,0.544659]
[1752531802649,0.13656099,120170.0,120160.0,0.544659]
[1752531803037,0.12824,120170.0,120160.0,0.544659]
[1752531803936,0.13656092,120170.0,120160.0,0.544659]
[1752531804154,0.12824,120170.0,120160.0,0.544659]
[1752531807663,0.12824,120170.0,120160.0,0.899759]
[1752531807891,0.12824,120170.0,120160.0,1.24666825]
[1752531808169,0.11524,120170.0,120160.0,1.24666825]
[1752531808829,0.11524,120170.0,120160.0,1.25487953]
[1752531810611,0.11524,120170.0,120160.0,1.25587953]
[1752531810953,0.11524,120170.0,120160.0,0.92351113]
[1752531811229,0.11524,120170.0,120160.0,0.91529985]
[1752531818675,0.11524,120170.0,120160.0,1.24766825]
[1752531819724,0.11524,120170.0,120160.0,0.91529985]
[1752531820476,0.00832022,120180.0,120170.0,0.19139466]
[1752531820656,0.0490399,120190.0,120180.0,0.19969932]
[1752531820918,0.16895093,120190.0,120180.0,0.27059229]
[1752531821153,0.16895093,120190.0,120180.0,0.77419477]
[1752531821154,0.01813105,120190.0,120180.0,0.77419477]
[1752531821367,0.15265065,120190.0,120180.0,0.77419477]
[1752531821582,0.15265058,120190.0,120180.0,0.77419477]
[1752531821796,0.14433105,120190.0,120180.0,0.77419477]
[1752531822006,0.15265058,120190.0,120180.0,0.77419477]
[1752531823071,0.03477018,120190.0,120180.0,0.60810101]
[1752531823256,0.15261058,120190.0,120180.0,0.60810101]
[1752531823565,5.105e-05,120190.0,120180.0,0.60810101]
[1752531823794,0.12621105,120190.0,120180.0,0.65444186]
[1752531824001,0.12721105,120190.0,120180.0,0.65444186]
[1752531824207,0.12721105,120190.0,120180.0,0.99444186]
[1752531825692,0.12621105,120190.0,120180.0,0.99444186]
[1752531826139,0.12621105,120190.0,120180.0,0.97854186]
[1752531826552,0.12621105,120190.0,120180.0,0.99494186]
[1752531826882,0.12621105,120190.0,120180.0,0.97854186]
[1752531828843,0.12621105,120190.0,120180.0,0.99494186]
[1752531830111,0.12621105,120190.0,120180.0,0.97854186]
[1752531835619,0.12621105,120190.0,120180.0,0.96264186]
[1752531836052,0.13453058,120190.0,120180.0,0.96264186]
[1752531836686,0.14285018,120190.0,120180.0,0.96264186]
[1752531837114,0.13453058,120190.0,120180.0,0.96264186]
[1752531837995,0.12621105,120190.0,120180.0,0.96264186]
[1752531838215,0.13453058,120190.0,120180.0,0.96264186]
[1752531839477,0.12621105,120190.0,120180.0,0.96264186]
[1752531840379,5.105e-05,120190.0,120180.0,0.96264186]
[1752531840625,0.12617105,120190.0,120180.0,0.97834186]
[1752531841927,0.12617105,120190.0,120180.0,0.99374186]
[1752531843051,0.12617105,120190.0,120180.0,1.15973806]
[1752531845450,5.105e-05,120190.0,120180.0,1.15973806]
[1752531846276,5.105e-05,120190.0,120180.0,1.61629263]
[1752531846497,0.2160556,120220.0,120180.0,1.61629263]
[1752531846498,0.02477319,120220.0,120210.0,0.18301269]
[1752531846709,0.02477319,120220.0,120210.0,0.44984293]
[1752531846710,0.1859299,120220.0,120210.0,0.44984293]
[1752531846926,0.18592997,120220.0,120210.0,0.45816122]
[1752531847598,0.17761203,120220.0,120210.0,0.45816122]
[1752531847815,0.18592997,120220.0,120210.0,0.45816122]
[1752531849149,0.19424798,120220.0,120210.0,0.46110122]
[1752531849553,0.18592997,120220.0,120210.0,0.46110122]
[1752531850325,0.05149203,120220.0,120210.0,0.46110122]
[1752531850514,0.17761203,120220.0,120210.0,0.46110122]
[1752531850758,0.18592997,120220.0,120210.0,0.46110122]
[1752531851759,0.16952997,120220.0,120210.0,0.46110122]
[1752531851985,0.16952997,120220.0,120210.0,0.46320122]
[1752531852866,0.16121203,120220.0,120210.0,0.46320122]
[1752531853099,0.16952997,120220.0,120210.0,0.46320122]
[1752531853575,0.04340997,120220.0,120210.0,0.46320122]
[1752531853820,0.16948997,120220.0,120210.0,0.46320122]
[1752531860492,0.04340997,120220.0,120210.0,0.46320122]
[1752531860696,0.16948997,120220.0,120210.0,0.46320122]
[1752531861892,0.16117203,120220.0,120210.0,0.46320122]
[1752531862043,0.14477203,120220.0,120210.0,0.46320122]
[1752531862248,0.13450423,120220.0,120210.0,0.46320122]
[1752531862635,0.00842423,120220.0,120210.0,0.46320122]
[1752531862868,0.13450423,120220.0,120210.0,0.46320122]
[1752531863396,0.02505976,120220.0,120210.0,0.21411376]
[1752531863602,0.15109969,120220.0,120210.0,0.45377686]
[1752531863803,0.02505969,120220.0,120210.0,0.45377686]
[1752531864017,0.15109969,120220.0,120210.0,0.45377686]
[1752531864435,0.15109969,120220.0,120210.0,0.2046894]
[1752531864663,0.14278189,120220.0,120210.0,0.45377686]
[1752531864875,0.00842423,120220.0,120210.0,0.45377686]
[1752531865091,0.13446423,120220.0,120210.0,0.45377686]
[1752531865525,0.14278189,120220.0,120210.0,0.45377686]